[Event "EYCC G10-ch 2024"]
[Site "Prague"]
[Date "2024.08.22"]
[Round "1.8"]
[White "Mauricova, Ivana"]
[Black "Ahmadli, Mehriban"]
[Result "0-1"]
[ECO "A48"]
[WhiteElo "1484"]
[BlackElo "1646"]
[Annotator "NA RC"]
[PlyCount "90"]
[EventDate "2024.08.19"]
[EventType "swiss"]
[EventCountry "CZE"]
[SourceTitle "playchess.com"]
[Source "ChessBase"]
[SourceQuality "1"]
[TimeControl "5400+30"]

1. d4 {[%emt 0:00:03]} Nf6 {[%emt 0:00:01]} 2. Bf4 {[%emt 0:00:46]} g6 {[%emt 0:00:15]} 3. Nf3 {[%emt 0:00:23]} Bg7 {[%emt 0:00:19]} 4. e3 {[%emt 0:00:25]} O-O {[%emt 0:00:48]} 5. c3 {[%emt 0:00:58]} d5 {[%emt 0:01:06]} 6. Nbd2 {[%emt 0:01:20]} b6 {[%emt 0:02:17]} 7. Ng5 {[%emt 0:00:56]} Nh5 {[%emt 0:06:10]} 8. Bg3 {[%emt 0:01:39]} h6 {[%emt 0:08:26]} 9. Ngf3 {[%emt 0:01:26]} c5 {[%emt 0:08:50]} 10. Be2 {[%emt 0:01:41]} Bg4 {[%emt 0:10:08]} 11. O-O {[%emt 0:03:01]} Nxg3 {[%emt 0:00:12]} 12. fxg3 {[%emt 0:00:41]} h5 {[%emt 0:03:24]} 13. Rf2 {[%emt 0:01:30]} Bh6 {[%emt 0:04:00]} 14. Nf1 {[%emt 0:02:16]} Nd7 {[%emt 0:04:02]} 15. h3 {[%emt 0:01:49]} Be6 {[%emt 0:06:04]} 16. Qd3 {[%emt 0:02:37]} Nf6 {[%emt 0:03:03]} 17. b3 {[%emt 0:03:04]} Ne4 {[%emt 0:01:18]} 18. c4 {[%emt 0:02:00]} Nxf2 {[%emt 0:00:19]} 19. Kxf2 {[%emt 0:01:03]} dxc4 {[%emt 0:00:35]} 20. bxc4 {[%emt 0:00:27]} cxd4 {[%emt 0:02:17]} 21. exd4 {[%emt 0:01:10]} Bf5 22. Qc3 {[%emt 0:02:03]} Be4 {[%emt 0:02:30]} 23. Kg1 {[%emt 0:02:13]} Bg7 {[%emt 0:02:48]} 24. Rd1 {[%emt 0:01:42]} Rc8 {[%emt 0:03:07]} 25. N1d2 {[%emt 0:01:49]} Bb7 {[%emt 0:04:15]} 26. Qe3 {[%emt 0:04:16]} Qd6 {[%emt 0:05:47]} 27. Kh2 {[%emt 0:05:24]} h4 {[%emt 0:13:18]} 28. Nxh4 {[%emt 0:00:57]} Qxd4 {[%emt 0:02:57]} 29. Qg5 {[%emt 0:01:42]} Bf6 {[%emt 0:03:04]} 30. Qh6 {[%emt 0:01:11]} Bxh4 {[%emt 0:00:36]} 31. gxh4 {[%emt 0:00:21]} Qe5+ {[%emt 0:00:08]} 32. Kh1 {[%emt 0:01:39]} Qxe2 {[%emt 0:00:34]} 33. Rg1 {[%emt 0:00:25]} Qh5 {[%emt 0:00:30]} 34. Qf4 {[%emt 0:00:51]} e5 {[%emt 0:00:46]} 35. Qg3 {[%emt 0:01:05]} Rfd8 {[%emt 0:00:14]} 36. Nf3 {[%emt 0:00:48]} Bxf3 {[%emt 0:00:13]} 37. gxf3 {[%emt 0:00:30]} Rxc4 {[%emt 0:00:18]} 38. a3 {[%emt 0:05:10]} Rxh4 {[%emt 0:00:17]} 39. Rg2 {[%emt 0:02:29]} Rxh3+ {[%emt 0:00:03]} 40. Rh2 {[%emt 0:00:50]} Rxg3 {[%emt 0:00:01]} 41. Rxh5 {[%emt 0:00:30]} gxh5 {[%emt 0:00:01]} 42. Kh2 {[%emt 0:00:20]} Rxf3 {[%emt 0:00:04]} 43. a4 {[%emt 0:00:21]} Ra3 {[%emt 0:00:16]} 44. Kg2 {[%emt 0:00:22]} Rd2+ 45. Kh1 {[%emt 0:02:05]} Ra1# {[%emt 0:00:08]} 0-1

[Event "EYCC G10-ch 2024"]
[Site "Prague"]
[Date "2024.08.22"]
[Round "1.9"]
[White "Constantin-Ciuntu, Anne-Sophie"]
[Black "Szczurek, Julia"]
[Result "1-0"]
[ECO "C44"]
[WhiteElo "1641"]
[BlackElo "1471"]
[Annotator "NA RC"]
[PlyCount "117"]
[EventDate "2024.08.19"]
[EventType "swiss"]
[EventCountry "CZE"]
[SourceTitle "playchess.com"]
[Source "ChessBase"]
[SourceQuality "1"]
[TimeControl "5400+30"]

1. e4 {[%emt 0:00:03]} e5 {[%emt 0:00:03]} 2. Nf3 {[%emt 0:00:08]} Nc6 {[%emt 0:00:04]} 3. d4 {[%emt 0:00:11]} exd4 {[%emt 0:00:11]} 4. Nxd4 {[%emt 0:00:07]} Nf6 {[%emt 0:00:32]} 5. Nc3 {[%emt 0:00:08]} Bb4 {[%emt 0:00:37]} 6. Nxc6 {[%emt 0:00:17]} bxc6 {[%emt 0:00:14]} 7. Bd3 {[%emt 0:00:15]} d5 {[%emt 0:00:55]} 8. exd5 {[%emt 0:01:02]} cxd5 {[%emt 0:00:29]} 9. O-O {[%emt 0:01:01]} O-O {[%emt 0:00:26]} 10. Bg5 {[%emt 0:01:00]} c6 {[%emt 0:01:58]} 11. a3 {[%emt 0:02:51]} Bd6 {[%emt 0:02:09]} 12. h3 {[%emt 0:02:41]} Be6 {[%emt 0:02:15]} 13. Qf3 {[%emt 0:05:26]} c5 {[%emt 0:07:00]} 14. Bxf6 {[%emt 0:10:47]} Qxf6 {[%emt 0:00:23]} 15. Qxf6 {[%emt 0:00:06]} gxf6 {[%emt 0:00:09]} 16. f4 {[%emt 0:00:38]} c4 {[%emt 0:05:10]} 17. Be2 {[%emt 0:01:23]} d4 {[%emt 0:02:10]} 18. Ne4 {[%emt 0:01:50]} Be7 {[%emt 0:00:36]} 19. f5 {[%emt 0:03:24]} Bd5 {[%emt 0:03:01]} 20. Bf3 {[%emt 0:04:58]} Bxe4 {[%emt 0:08:25]} 21. Bxe4 {[%emt 0:00:02]} Rab8 {[%emt 0:00:44]} 22. Rab1 {[%emt 0:03:31]} Bc5 {[%emt 0:01:41]} 23. Kh2 {[%emt 0:02:28]} Rfe8 {[%emt 0:04:10]} 24. Bd5 {[%emt 0:02:43]} Bd6+ {[%emt 0:07:18]} 25. Kh1 {[%emt 0:00:33]} Rbc8 {[%emt 0:02:23]} 26. Rbe1 {[%emt 0:03:27]} Be5 {[%emt 0:04:21]} 27. b3 {[%emt 0:08:28]} c3 {[%emt 0:03:16]} 28. Bc4 {[%emt 0:02:40]} a5 {[%emt 0:03:16]} 29. Re4 {[%emt 0:03:49]} Red8 {[%emt 0:01:37]} 30. a4 {[%emt 0:02:50]} Rd6 {[%emt 0:06:19]} 31. g4 {[%emt 0:02:06]} Kf8 {[%emt 0:01:57]} 32. Rfe1 {[%emt 0:03:09]} Rd7 {[%emt 0:03:32]} 33. Kg2 {[%emt 0:01:53]} Re7 {[%emt 0:00:33]} 34. Bb5 {[%emt 0:03:55]} Rcc7 {[%emt 0:00:46]} 35. Kf3 {[%emt 0:01:07]} Bd6 {[%emt 0:01:25]} 36. Rxe7 {[%emt 0:00:29]} Rxe7 {[%emt 0:00:07]} 37. Rxe7 {[%emt 0:01:02]} Kxe7 {[%emt 0:00:10]} 38. Ke4 {[%emt 0:00:14]} Be5 {[%emt 0:01:15]} 39. Kd5 {[%emt 0:00:27]} Kd8 {[%emt 0:00:29]} 40. Kc6 {[%emt 0:00:19]} Bc7 {[%emt 0:00:25]} 41. Kc5 {[%emt 0:00:23]} Be5 {[%emt 0:00:12]} 42. b4 {[%emt 0:02:17]} axb4 {[%emt 0:00:22]} 43. Kxb4 {[%emt 0:00:02]} Kc7 {[%emt 0:00:42]} 44. Kc5 {[%emt 0:00:20]} Kb7 {[%emt 0:00:24]} 45. a5 {[%emt 0:00:23]} Ka7 {[%emt 0:02:31]} 46. Kc6 {[%emt 0:00:26]} Kb8 {[%emt 0:00:09]} 47. Kd7 {[%emt 0:00:14]} Bf4 {[%emt 0:00:58]} 48. Ke7 {[%emt 0:00:09]} Bg5 {[%emt 0:00:17]} 49. Kxf7 {[%emt 0:00:23]} h6 {[%emt 0:00:12]} 50. Kg6 {[%emt 0:00:19]} Ka7 {[%emt 0:00:08]} 51. Kh5 {[%emt 0:00:14]} Bf4 {[%emt 0:00:41]} 52. h4 {[%emt 0:00:16]} Bg3 {[%emt 0:00:17]} 53. g5 {[%emt 0:00:17]} Bxh4 {[%emt 0:00:31]} 54. gxh6 {[%emt 0:00:36]} Bg3 {[%emt 0:00:31]} 55. h7 {[%emt 0:00:05]} Be5 {[%emt 0:00:12]} 56. h8=Q {[%emt 0:00:03]} Kb7 {[%emt 0:00:11]} 57. Qg7+ {[%emt 0:00:11]} Kc8 {[%emt 0:00:52]} 58. a6 {[%emt 0:00:12]} Kb8 {[%emt 0:00:19]} 59. Qb7# 1-0

[Event "EYCC G10-ch 2024"]
[Site "Prague"]
[Date "2024.08.22"]
[Round "1.10"]
[White "Fire, Nesli"]
[Black "Anistoroaei, Maria"]
[Result "0-1"]
[ECO "B26"]
[WhiteElo "1461"]
[BlackElo "1627"]
[Annotator "NA RC"]
[PlyCount "58"]
[EventDate "2024.08.19"]
[EventType "swiss"]
[EventCountry "CZE"]
[SourceTitle "playchess.com"]
[Source "ChessBase"]
[SourceQuality "1"]
[TimeControl "5400+30"]

1. e4 {[%emt 0:00:59]} c5 {[%emt 0:00:06]} 2. Nc3 {[%emt 0:00:37]} Nc6 {[%emt 0:00:12]} 3. g3 {[%emt 0:00:48]} g6 {[%emt 0:00:06]} 4. Bg2 {[%emt 0:00:17]} Bg7 {[%emt 0:00:08]} 5. d3 {[%emt 0:01:07]} d6 {[%emt 0:00:03]} 6. Be3 {[%emt 0:01:00]} e6 {[%emt 0:00:09]} 7. Qd2 {[%emt 0:08:13]} Nge7 {[%emt 0:01:39]} 8. Bg5 {[%emt 0:06:03]} O-O {[%emt 0:01:02]} 9. Nge2 {[%emt 0:01:41]} b6 {[%emt 0:04:22]} 10. Bh6 {[%emt 0:03:56]} Nd4 {[%emt 0:06:36]} 11. Bxg7 {[%emt 0:01:33]} Kxg7 {[%emt 0:00:59]} 12. Nxd4 {[%emt 0:00:36]} cxd4 {[%emt 0:00:17]} 13. Ne2 {[%emt 0:01:13]} e5 {[%emt 0:02:27]} 14. h4 {[%emt 0:01:42]} h5 {[%emt 0:07:36]} 15. Ng1 {[%emt 0:01:57]} Bd7 {[%emt 0:11:20]} 16. Bh3 {[%emt 0:01:23]} Rh8 {[%emt 0:09:40]} 17. f4 {[%emt 0:11:47]} Ng8 {[%emt 0:26:53]} 18. Bxd7 {[%emt 0:10:12]} Qxd7 {[%emt 0:00:42]} 19. f5 {[%emt 0:05:47]} d5 {[%emt 0:03:15]} 20. Qg5 {[%emt 0:13:52]} dxe4 {[%emt 0:09:27]} 21. fxg6 {[%emt 0:01:32]} f6 {[%emt 0:00:36]} 22. Qd2 {[%emt 0:03:43]} exd3 {[%emt 0:06:37]} 23. Qxd3 {[%emt 0:01:37]} e4 {[%emt 0:02:55]} 24. Qd2 {[%emt 0:02:57]} d3 {[%emt 0:01:44]} 25. O-O-O {[%emt 0:01:18]} Qc6 {[%emt 0:01:49]} 26. c3 {[%emt 0:02:08]} Rd8 {[%emt 0:01:41]} 27. Qe3 {[%emt 0:01:40]} Qa4 {[%emt 0:00:15]} 28. Qf2 {[%emt 0:02:00]} e3 {[%emt 0:00:36]} 29. Qg2 {[%emt 0:00:36]} d2+ {[%emt 0:00:25]} 0-1

[Event "EYCC G10-ch 2024"]
[Site "Prague"]
[Date "2024.08.22"]
[Round "1.11"]
[White "Serradell Munoz, Silvia"]
[Black "Sieczkowska, Hanna"]
[Result "1/2-1/2"]
[ECO "B43"]
[WhiteElo "1619"]
[BlackElo "1461"]
[Annotator "NA RC"]
[PlyCount "115"]
[EventDate "2024.08.19"]
[EventType "swiss"]
[EventCountry "CZE"]
[SourceTitle "playchess.com"]
[Source "ChessBase"]
[SourceQuality "1"]
[TimeControl "5400+30"]

1. e4 {[%emt 0:00:09]} c5 {[%emt 0:00:09]} 2. Nf3 {[%emt 0:00:40]} e6 {[%emt 0:00:16]} 3. d4 {[%emt 0:00:34]} cxd4 {[%emt 0:00:20]} 4. Nxd4 {[%emt 0:00:30]} a6 {[%emt 0:00:13]} 5. Nc3 {[%emt 0:00:33]} b5 {[%emt 0:00:24]} 6. Bd3 {[%emt 0:02:57]} Bb7 {[%emt 0:01:43]} 7. O-O {[%emt 0:01:01]} Qb6 {[%emt 0:01:23]} 8. Nf3 {[%emt 0:01:46]} Qc7 {[%emt 0:00:49]} 9. Be3 {[%emt 0:02:44]} d6 {[%emt 0:00:22]} 10. Re1 {[%emt 0:01:30]} Nd7 {[%emt 0:00:51]} 11. a3 {[%emt 0:03:57]} Ngf6 {[%emt 0:00:30]} 12. h3 {[%emt 0:03:10]} Be7 {[%emt 0:01:31]} 13. Nd4 {[%emt 0:02:02]} O-O {[%emt 0:00:43]} 14. Bg5 {[%emt 0:01:33]} Rac8 {[%emt 0:04:23]} 15. Qe2 {[%emt 0:06:27]} Rfd8 {[%emt 0:00:24]} 16. Rad1 {[%emt 0:00:38]} Nc5 {[%emt 0:05:25]} 17. Qe3 {[%emt 0:05:23]} Nxd3 {[%emt 0:09:58]} 18. Qxd3 {[%emt 0:01:03]} Qc5 {[%emt 0:00:18]} 19. Be3 {[%emt 0:03:09]} Qc4 {[%emt 0:01:25]} 20. f3 {[%emt 0:06:55]} Nd7 {[%emt 0:01:32]} 21. Qxc4 {[%emt 0:05:33]} Rxc4 {[%emt 0:00:12]} 22. Nb3 {[%emt 0:02:03]} Rcc8 {[%emt 0:00:28]} 23. Na5 {[%emt 0:02:03]} Ba8 {[%emt 0:00:32]} 24. Re2 {[%emt 0:06:09]} Ne5 {[%emt 0:00:56]} 25. Red2 {[%emt 0:08:04]} Rd7 {[%emt 0:00:40]} 26. Bf4 {[%emt 0:01:35]} f6 {[%emt 0:01:51]} 27. Bxe5 {[%emt 0:02:28]} fxe5 {[%emt 0:00:16]} 28. Na2 {[%emt 0:04:24]} d5 {[%emt 0:02:13]} 29. exd5 {[%emt 0:02:14]} exd5 {[%emt 0:00:23]} 30. Nc3 {[%emt 0:01:03]} d4 {[%emt 0:00:51]} 31. Nb3 {[%emt 0:03:21]} Bxa3 {[%emt 0:04:47]} 32. bxa3 {[%emt 0:01:43]} Rxc3 {[%emt 0:00:12]} 33. Re1 {[%emt 0:02:40]} Re7 {[%emt 0:02:45]} 34. Nxd4 {[%emt 0:03:57]} Rxa3 {[%emt 0:01:20]} 35. Nf5 {[%emt 0:00:20]} Re8 {[%emt 0:00:18]} 36. Rd7 {[%emt 0:01:52]} g6 {[%emt 0:01:01]} 37. Nh6+ {[%emt 0:00:24]} Kh8 {[%emt 0:00:12]} 38. Nf7+ {[%emt 0:01:03]} Kg8 {[%emt 0:00:18]} 39. Ng5 {[%emt 0:00:48]} h6 {[%emt 0:01:23]} 40. Nh7 {[%emt 0:01:21]} Re6 {[%emt 0:01:38]} 41. Rd8+ {[%emt 0:02:00]} Kxh7 {[%emt 0:00:17]} 42. Rxa8 {[%emt 0:00:08]} Kg7 {[%emt 0:00:23]} 43. Rd1 {[%emt 0:03:30]} Kf6 {[%emt 0:00:48]} 44. Rd7 {[%emt 0:03:02]} Kg5 {[%emt 0:00:25]} 45. Rd5 {[%emt 0:01:38]} b4 {[%emt 0:01:05]} 46. Rf8 {[%emt 0:00:55]} Kh4 {[%emt 0:01:33]} 47. Kh2 {[%emt 0:02:03]} Rc3 {[%emt 0:00:25]} 48. g3+ {[%emt 0:00:26]} Kg5 {[%emt 0:00:38]} 49. f4+ {[%emt 0:00:19]} Kh5 {[%emt 0:00:27]} 50. Rd2 {[%emt 0:00:38]} exf4 {[%emt 0:00:43]} 51. Rxf4 {[%emt 0:00:17]} b3 {[%emt 0:02:17]} 52. cxb3 {[%emt 0:00:24]} Rxb3 {[%emt 0:00:08]} 53. Rh4+ {[%emt 0:00:59]} Kg5 {[%emt 0:00:54]} 54. Rf2 {[%emt 0:00:12]} h5 {[%emt 0:00:32]} 55. Ra4 {[%emt 0:00:31]} Rb5 {[%emt 0:00:31]} 56. h4+ {[%emt 0:00:21]} Kh6 {[%emt 0:00:29]} 57. Rfa2 {[%emt 0:00:13]} Rbb6 {[%emt 0:00:50]} 58. R4a3 {[%emt 0:00:38]} 1/2-1/2

[Event "EYCC G10-ch 2024"]
[Site "Prague"]
[Date "2024.08.22"]
[Round "1.12"]
[White "Goralik, Zuzanna"]
[Black "Aragonda, Sahasra"]
[Result "0-1"]
[ECO "B27"]
[WhiteElo "1459"]
[BlackElo "1617"]
[Annotator "NA RC"]
[PlyCount "88"]
[EventDate "2024.08.19"]
[EventType "swiss"]
[EventCountry "CZE"]
[SourceTitle "playchess.com"]
[Source "ChessBase"]
[SourceQuality "1"]
[TimeControl "5400+30"]

1. e4 {[%emt 0:00:04]} c5 {[%emt 0:00:08]} 2. Nf3 {[%emt 0:00:26]} g6 {[%emt 0:00:15]} 3. d4 {[%emt 0:00:32]} cxd4 {[%emt 0:00:11]} 4. Qxd4 {[%emt 0:00:16]} Nf6 {[%emt 0:00:17]} 5. Nc3 {[%emt 0:00:35]} Nc6 {[%emt 0:02:04]} 6. Qa4 {[%emt 0:00:38]} d6 {[%emt 0:10:45]} 7. e5 {[%emt 0:00:59]} Ng4 {[%emt 0:00:48]} 8. exd6 {[%emt 0:06:51]} Qxd6 {[%emt 0:01:52]} 9. Bf4 {[%emt 0:07:44]} Qb4 {[%emt 0:03:38]} 10. Bb5 {[%emt 0:11:10]} Qxa4 {[%emt 0:00:51]} 11. Nxa4 {[%emt 0:01:34]} Bg7 {[%emt 0:02:33]} 12. h3 {[%emt 0:01:42]} Nf6 {[%emt 0:01:31]} 13. Ne5 {[%emt 0:02:33]} Bd7 {[%emt 0:03:33]} 14. Nxd7 {[%emt 0:04:05]} Nxd7 {[%emt 0:00:41]} 15. Rd1 {[%emt 0:01:11]} Rc8 {[%emt 0:03:25]} 16. a3 {[%emt 0:10:13]} a6 {[%emt 0:03:14]} 17. Be2 {[%emt 0:02:04]} Nde5 {[%emt 0:03:27]} 18. Nc5 {[%emt 0:02:19]} Nd4 {[%emt 0:10:35]} 19. Rxd4 {[%emt 0:08:19]} Rxc5 {[%emt 0:00:26]} 20. Rd2 {[%emt 0:01:01]} Nc4 {[%emt 0:03:00]} 21. Bxc4 {[%emt 0:06:31]} Rxc4 {[%emt 0:00:19]} 22. Be3 {[%emt 0:03:18]} Bxb2 {[%emt 0:02:13]} 23. Ke2 {[%emt 0:00:59]} Bxa3 {[%emt 0:05:31]} 24. Rhd1 {[%emt 0:00:47]} Rc8 {[%emt 0:06:47]} 25. Bb6 {[%emt 0:01:07]} Bd6 {[%emt 0:02:34]} 26. Kf1 {[%emt 0:02:47]} O-O {[%emt 0:02:46]} 27. Rb1 {[%emt 0:01:19]} Rc6 {[%emt 0:03:06]} 28. Ke2 {[%emt 0:01:58]} Rfc8 {[%emt 0:02:27]} 29. Kd1 {[%emt 0:00:44]} Kg7 {[%emt 0:01:22]} 30. g4 {[%emt 0:00:53]} f6 {[%emt 0:03:30]} 31. Re2 {[%emt 0:01:30]} Kf7 {[%emt 0:01:51]} 32. h4 {[%emt 0:02:29]} Rc4 {[%emt 0:02:03]} 33. h5 {[%emt 0:01:13]} Rxg4 {[%emt 0:01:56]} 34. hxg6+ {[%emt 0:00:32]} hxg6 {[%emt 0:01:34]} 35. Rb3 {[%emt 0:01:19]} Rg1+ {[%emt 0:02:25]} 36. Kd2 {[%emt 0:00:53]} Bf4+ {[%emt 0:02:24]} 37. Kd3 {[%emt 0:00:53]} Rg5 {[%emt 0:00:52]} 38. c4 {[%emt 0:00:43]} Bd6 {[%emt 0:01:36]} 39. Rc2 {[%emt 0:01:19]} Be5 {[%emt 0:03:32]} 40. Be3 {[%emt 0:00:49]} Rh5 {[%emt 0:00:40]} 41. Rxb7 {[%emt 0:00:34]} Rd8+ {[%emt 0:01:11]} 42. Ke4 {[%emt 0:01:13]} Rh3 {[%emt 0:02:26]} 43. Ra7 {[%emt 0:01:02]} Bb8 {[%emt 0:00:28]} 44. Rxa6 {[%emt 0:03:30]} f5# 0-1

[Event "EYCC G10-ch 2024"]
[Site "Prague"]
[Date "2024.08.22"]
[Round "1.13"]
[White "Slusarczyk, Agnieszka"]
[Black "Kovacikova, Simona"]
[Result "1-0"]
[ECO "E06"]
[WhiteElo "1614"]
[BlackElo "1459"]
[Annotator "NA RC"]
[PlyCount "95"]
[EventDate "2024.08.19"]
[EventType "swiss"]
[EventCountry "CZE"]
[SourceTitle "playchess.com"]
[Source "ChessBase"]
[SourceQuality "1"]
[TimeControl "5400+30"]

1. d4 {[%emt 0:00:02]} d5 {[%emt 0:00:17]} 2. Nf3 {[%emt 0:00:09]} Nf6 {[%emt 0:00:47]} 3. c4 {[%emt 0:00:18]} e6 {[%emt 0:01:16]} 4. g3 {[%emt 0:00:18]} Be7 {[%emt 0:03:16]} 5. Bg2 {[%emt 0:00:22]} O-O {[%emt 0:01:06]} 6. O-O {[%emt 0:00:13]} Nc6 {[%emt 0:00:58]} 7. Nbd2 {[%emt 0:00:48]} Re8 {[%emt 0:01:22]} 8. Qc2 {[%emt 0:01:50]} a6 {[%emt 0:05:14]} 9. b3 {[%emt 0:00:36]} Qd7 {[%emt 0:03:16]} 10. Bb2 {[%emt 0:01:09]} dxc4 {[%emt 0:02:11]} 11. Nxc4 {[%emt 0:01:01]} Bd6 {[%emt 0:06:33]} 12. Rfd1 {[%emt 0:01:23]} Qe7 {[%emt 0:03:05]} 13. e4 {[%emt 0:05:19]} Nd7 {[%emt 0:06:16]} 14. e5 {[%emt 0:01:18]} Bb4 {[%emt 0:00:40]} 15. a3 {[%emt 0:00:24]} Ba5 {[%emt 0:00:35]} 16. b4 {[%emt 0:00:47]} Bb6 {[%emt 0:00:34]} 17. Rac1 {[%emt 0:07:02]} f6 {[%emt 0:04:57]} 18. exf6 {[%emt 0:07:28]} Nxf6 {[%emt 0:02:01]} 19. Nfe5 {[%emt 0:01:21]} Nxe5 {[%emt 0:06:25]} 20. dxe5 {[%emt 0:00:54]} Nd7 {[%emt 0:05:29]} 21. Nxb6 {[%emt 0:00:54]} Nxb6 {[%emt 0:02:26]} 22. Qxc7 {[%emt 0:00:44]} Qxc7 {[%emt 0:04:58]} 23. Rxc7 {[%emt 0:00:13]} Rb8 {[%emt 0:02:25]} 24. f4 {[%emt 0:02:50]} Na4 {[%emt 0:02:42]} 25. Bd4 {[%emt 0:00:26]} Rd8 {[%emt 0:02:10]} 26. Rdc1 {[%emt 0:03:15]} Rxd4 27. Rxc8+ {[%emt 0:00:16]} Rxc8 {[%emt 0:07:03]} 28. Rxc8+ {[%emt 0:00:08]} Kf7 {[%emt 0:00:16]} 29. Bxb7 {[%emt 0:00:11]} Rd1+ {[%emt 0:00:46]} 30. Kg2 {[%emt 0:00:13]} Rd2+ {[%emt 0:00:11]} 31. Kh3 {[%emt 0:00:07]} Rd3 {[%emt 0:00:47]} 32. Bxa6 {[%emt 0:00:38]} Rxa3 {[%emt 0:00:27]} 33. b5 {[%emt 0:00:55]} Nb6 {[%emt 0:02:28]} 34. Rc7+ {[%emt 0:00:58]} Ke8 {[%emt 0:01:09]} 35. Rxg7 {[%emt 0:00:28]} h5 {[%emt 0:01:13]} 36. Kh4 {[%emt 0:00:33]} Ra2 {[%emt 0:01:13]} 37. h3 {[%emt 0:00:09]} Rh2 {[%emt 0:00:22]} 38. Bb7 {[%emt 0:00:48]} Nd5 {[%emt 0:02:20]} 39. Bxd5 {[%emt 0:00:34]} exd5 {[%emt 0:00:35]} 40. b6 {[%emt 0:00:17]} Kd8 {[%emt 0:00:35]} 41. b7 {[%emt 0:00:03]} Rb2 {[%emt 0:00:30]} 42. e6 {[%emt 0:00:41]} d4 {[%emt 0:01:53]} 43. Rg8+ {[%emt 0:00:28]} Kc7 {[%emt 0:00:52]} 44. b8=Q+ {[%emt 0:00:09]} Rxb8 {[%emt 0:01:25]} 45. Rxb8 {[%emt 0:00:07]} d3 {[%emt 0:00:31]} 46. e7 {[%emt 0:00:31]} d2 {[%emt 0:00:46]} 47. e8=Q {[%emt 0:00:10]} d1=Q {[%emt 0:00:24]} 48. Qc8+ {[%emt 0:00:07]} 1-0

[Event "EYCC G10-ch 2024"]
[Site "Prague"]
[Date "2024.08.22"]
[Round "1.14"]
[White "Matos, Maria Rita"]
[Black "Bhaumik, Mehr"]
[Result "0-1"]
[ECO "B90"]
[WhiteElo "1453"]
[BlackElo "1606"]
[Annotator "NA RC"]
[PlyCount "86"]
[EventDate "2024.08.19"]
[EventType "swiss"]
[EventCountry "CZE"]
[SourceTitle "playchess.com"]
[Source "ChessBase"]
[SourceQuality "1"]
[TimeControl "5400+30"]

1. e4 {[%emt 0:00:04]} c5 {[%emt 0:00:14]} 2. Nf3 {[%emt 0:00:26]} d6 {[%emt 0:00:11]} 3. d4 {[%emt 0:00:22]} cxd4 {[%emt 0:00:15]} 4. Nxd4 {[%emt 0:00:29]} Nf6 {[%emt 0:00:22]} 5. Nc3 {[%emt 0:00:23]} a6 {[%emt 0:00:58]} 6. f3 {[%emt 0:00:34]} e5 {[%emt 0:00:37]} 7. Nb3 {[%emt 0:00:48]} Be7 {[%emt 0:01:44]} 8. Be3 {[%emt 0:00:45]} b5 {[%emt 0:02:59]} 9. Qd2 {[%emt 0:03:10]} Bb7 {[%emt 0:03:41]} 10. O-O-O {[%emt 0:02:02]} Nbd7 {[%emt 0:04:00]} 11. Bd3 {[%emt 0:07:28]} Nb6 {[%emt 0:05:24]} 12. a3 {[%emt 0:03:27]} Nc4 {[%emt 0:04:40]} 13. Bxc4 {[%emt 0:01:25]} bxc4 {[%emt 0:01:07]} 14. Na1 {[%emt 0:01:50]} Bc6 {[%emt 0:17:41]} 15. Qe2 {[%emt 0:05:18]} Bb5 {[%emt 0:17:23]} 16. Qf2 {[%emt 0:06:48]} Bd7 {[%emt 0:04:23]} 17. Rhe1 {[%emt 0:04:11]} Be6 {[%emt 0:02:46]} 18. g4 {[%emt 0:03:22]} Nd7 {[%emt 0:01:13]} 19. Rg1 {[%emt 0:02:55]} Rb8 {[%emt 0:05:24]} 20. Kb1 {[%emt 0:06:12]} Qa5 {[%emt 0:03:06]} 21. Bd2 {[%emt 0:03:05]} Qxa3 {[%emt 0:02:45]} 22. Bc1 {[%emt 0:01:48]} Qxc3 {[%emt 0:00:37]} 23. Qd2 {[%emt 0:00:51]} Qxd2 {[%emt 0:00:40]} 24. Bxd2 {[%emt 0:00:17]} O-O {[%emt 0:00:32]} 25. b3 {[%emt 0:00:44]} cxb3 {[%emt 0:00:09]} 26. Nxb3 {[%emt 0:00:20]} Nc5 {[%emt 0:00:19]} 27. Kb2 {[%emt 0:00:40]} Nxb3 {[%emt 0:00:40]} 28. cxb3 {[%emt 0:00:12]} Bxb3 {[%emt 0:00:47]} 29. Rc1 {[%emt 0:00:14]} Bd1+ {[%emt 0:00:16]} 30. Ka1 {[%emt 0:00:21]} Bxf3 {[%emt 0:00:13]} 31. Rgf1 {[%emt 0:00:27]} Bxe4 {[%emt 0:00:23]} 32. Rfe1 {[%emt 0:00:31]} d5 {[%emt 0:00:51]} 33. Ka2 {[%emt 0:00:40]} Rb7 {[%emt 0:01:19]} 34. Bc3 {[%emt 0:00:29]} f6 {[%emt 0:00:19]} 35. Re2 {[%emt 0:00:35]} Bd3 {[%emt 0:00:31]} 36. Rd2 {[%emt 0:00:25]} Bc4+ {[%emt 0:00:13]} 37. Ka1 {[%emt 0:00:13]} Ba3 {[%emt 0:00:31]} 38. Rcd1 {[%emt 0:00:24]} Rfb8 {[%emt 0:00:23]} 39. Rf2 {[%emt 0:00:42]} d4 {[%emt 0:00:28]} 40. Ba5 {[%emt 0:00:34]} Bb2+ {[%emt 0:00:28]} 41. Kb1 {[%emt 0:00:27]} Bc3+ {[%emt 0:00:31]} 42. Kc1 {[%emt 0:00:23]} Rb1+ {[%emt 0:00:23]} 43. Kc2 {[%emt 0:00:12]} R8b2# {[%emt 0:00:10]} 0-1